fUSD/lending_fUSD_20240519
["ID","MTS","AMOUNT","RATE_DAILY","PERIOD"]
[327445314,1716077484489,-1308.68,0.00028767,2]
[327445315,1716077484498,-860.44,0.00028767,2]
[327445316,1716077484507,-608.58,0.00028767,2]
[327445317,1716077484516,-812.28,0.00028767,2]
[327445318,1716077484525,-500.0,0.00028767,2]
[327445319,1716077484534,-500.0,0.00028767,2]
[327445320,1716077484544,-500.0,0.00028767,2]
[327445321,1716077484553,-151.0,0.00028767,7]
[327445322,1716077484562,-792.67,0.00028767,2]
[327445323,1716077484571,-500.0,0.00028767,2]
[327445324,1716077484580,-1716.02,0.00028767,2]
[327445325,1716077484589,-613.67,0.00028767,2]
[327445326,1716077484598,-2023.97,0.00028767,2]
[327445327,1716077484608,-500.0,0.00028767,2]
[327445328,1716077484619,-616.74,0.00028767,2]
[327445329,1716077484629,-673.43,0.00028767,2]
[327445330,1716077484638,-4593.99,0.00028767,2]
[327445331,1716077484648,-519.79,0.00028767,2]
[327445332,1716077484658,-525.03,0.00028767,2]
[327445333,1716077484668,-224.890398,0.00028767,7]
[327445334,1716077484679,-500.0,0.00028767,2]
[327445335,1716077484691,-1670.46,0.00028767,2]
[327445336,1716077484701,-703.22,0.00028767,2]
[327445337,1716077484710,-500.0,0.00028767,2]
[327445338,1716077484719,-500.0,0.00028767,2]
[327445339,1716077484730,-500.0,0.00028767,2]
[327445340,1716077484739,-936.93,0.00028767,2]
[327445341,1716077484748,-224.890398,0.00028767,7]
[327445342,1716077484759,-500.0,0.00028767,2]
[327445343,1716077484768,-894.82,0.00028767,2]
[327445344,1716077484778,-500.0,0.00028767,2]
[327445345,1716077484787,-500.0,0.00028767,2]
[327445346,1716077484796,-500.0,0.00028767,2]
[327445347,1716077484805,-500.0,0.00028767,2]
[327445348,1716077484814,-500.0,0.00028767,2]
[327445349,1716077484823,-695.82,0.00028767,2]
[327445350,1716077484833,-715.76,0.00028767,2]
[327445351,1716077484843,-3124.26,0.00028767,2]
[327445352,1716077484852,-500.0,0.00028767,2]
[327445353,1716077484862,-500.0,0.00028767,2]
[327445354,1716077484871,-151.0,0.00028767,7]
[327445355,1716077484880,-510.06,0.00028767,2]
[327445356,1716077484889,-500.0,0.00028767,2]
[327445357,1716077484898,-877.57,0.00028767,2]
[327445358,1716077484908,-500.0,0.00028767,2]
[327445359,1716077484917,-1656.39,0.00028767,2]
[327445360,1716077484926,-743.1,0.00028767,2]
[327445361,1716077484935,-6564.04,0.00028767,2]
[327445362,1716077484944,-641.49,0.00028767,2]
[327445363,1716077484953,-4260.91,0.00028767,2]
[327445364,1716077484962,-500.0,0.00028767,2]
[327445365,1716077484971,-697.34,0.00028767,2]
[327445366,1716077484980,-2763.02,0.00028767,2]
[327445367,1716077484989,-858.1,0.00028767,2]
[327445368,1716077484998,-500.0,0.00028767,2]
[327445369,1716077485007,-547.00187535,0.00028767,2]
[327445370,1716077485017,-1870.09,0.00028767,2]
[327445371,1716077485026,-500.0,0.00028767,2]
[327445372,1716077485035,-500.0,0.00028767,2]
[327445373,1716077485044,-1489.33,0.00028767,2]
[327445374,1716077485053,-500.0,0.00028767,2]
[327445375,1716077485062,-500.0,0.00028767,2]
[327445376,1716077485071,-624.28,0.00028767,2]
[327445377,1716077485079,-1876.67,0.00028767,2]
[327445378,1716077485088,-3030.58,0.00028767,2]
[327445379,1716077485097,-151.0,0.00028767,7]
[327445380,1716077485106,-151.0,0.00028767,7]
[327445381,1716077485116,-151.0,0.00028767,7]
[327445382,1716077485125,-1754.2,0.00028767,2]
[327445383,1716077485135,-4440.09,0.00028767,2]
[327445384,1716077485144,-500.0,0.00028767,2]
[327445385,1716077485153,-168.540334,0.00028767,7]
[327445386,1716077485163,-500.0,0.00028767,2]
[327445387,1716077485172,-500.0,0.00028767,2]
[327445388,1716077485182,-919.75,0.00028767,2]
[327445389,1716077485191,-500.0,0.00028767,2]
[327445390,1716077485201,-747.95,0.00028767,2]
[327445391,1716077485210,-1492.23,0.00028767,2]
[327445392,1716077485219,-796.81,0.00028767,2]
[327445393,1716077485228,-151.0,0.00028767,7]
[327445394,1716077485238,-500.0,0.00028767,2]
[327445395,1716077485247,-4084.75,0.00028767,2]
[327445396,1716077485256,-500.0,0.00028767,2]
[327445397,1716077485266,-500.0,0.00028767,2]
[327445398,1716077485275,-759.03,0.00028767,2]
[327445399,1716077485285,-500.0,0.00028767,2]
[327445400,1716077485294,-500.0,0.00028767,2]
[327445401,1716077485303,-842.68,0.00028767,2]
[327445402,1716077485312,-1573.17,0.00028767,2]
[327445403,1716077485322,-500.0,0.00028767,2]
[327445404,1716077485331,-500.0,0.00028767,2]
[327445405,1716077485341,-500.0,0.00028767,2]
[327445406,1716077485349,-500.0,0.00028767,2]
[327445407,1716077485359,-1661.92,0.00028767,2]
[327445408,1716077485369,-500.0,0.00028767,2]
[327445409,1716077485378,-1958.77,0.00028767,2]
[327445410,1716077485391,-1716.41,0.00028767,2]
[327445411,1716077485400,-500.0,0.00028767,2]
[327445412,1716077485409,-500.0,0.00028767,2]
[327445413,1716077485418,-682.52,0.00028767,2]
[327445414,1716077485427,-612.02,0.00028767,2]
[327445415,1716077485436,-500.0,0.00028767,2]
[327445416,1716077485445,-500.0,0.00028767,2]
[327445417,1716077485454,-691.49,0.00028767,2]
[327445418,1716077485463,-1225.99,0.00028767,2]
[327445419,1716077485473,-500.0,0.00028767,2]
[327445420,1716077485482,-504.06,0.00028767,2]
[327445421,1716077485491,-4495.909897,0.00028767,7]
[327445422,1716077485500,-1815.65,0.00028767,2]
[327445423,1716077485510,-500.0,0.00028767,2]
[327445424,1716077485519,-2018.48,0.00028767,2]
[327445425,1716077485528,-168.658807,0.00028767,7]
[327445426,1716077485537,-1716.75,0.00028767,2]
[327445427,1716077485546,-151.0,0.00028767,7]
[327445428,1716077485557,-980.98,0.00028767,2]
[327445429,1716077485566,-4495.909897,0.00028767,7]
[327445430,1716077485576,-908.4,0.00028767,2]
[327445431,1716077485585,-519.812481,0.00028767,7]
[327445432,1716077485594,-500.0,0.00028767,2]
[327445433,1716077485603,-500.0,0.00028767,2]
[327445434,1716077485614,-519.812481,0.00028767,7]
[327445435,1716077485624,-154.723726,0.00028767,7]
[327445436,1716077485633,-1124.01,0.00028767,2]
[327445437,1716077485642,-2424.02,0.00028767,2]
[327445438,1716077485651,-500.0,0.00028767,2]
[327445439,1716077485660,-500.0,0.00028767,2]
[327445440,1716077485669,-1936.72,0.00028767,2]
[327445441,1716077485681,-1249.4,0.00028767,2]
[327445442,1716077485691,-500.0,0.00028767,2]
[327445443,1716077485701,-2316.41,0.00028767,2]
[327445444,1716077485710,-500.0,0.00028767,2]
[327445445,1716077485721,-1024.15,0.00028767,2]
[327445446,1716077485730,-895.6,0.00028767,2]
[327445447,1716077485741,-500.0,0.00028767,2]
[327445448,1716077485750,-500.0,0.00028767,2]
[327445449,1716077485763,-500.0,0.00028767,2]
[327445450,1716077485773,-709.56,0.00028767,2]
[327445451,1716077485783,-500.0,0.00028767,2]
[327445452,1716077485793,-570.19,0.00028767,2]
[327445453,1716077485802,-1154.19,0.00028767,2]
[327445454,1716077485811,-1378.01,0.00028767,2]
[327445455,1716077485820,-1873.84,0.00028767,2]
[327445456,1716077485830,-503.15,0.00028767,2]
[327445457,1716077485840,-500.0,0.00028767,2]
[327445458,1716077485850,-151.0,0.00028767,7]
[327445459,1716077485859,-2689.46,0.00028767,2]
[327445460,1716077485869,-842.94,0.00028767,2]
[327445461,1716077485879,-956.07,0.00028767,2]
[327445462,1716077485889,-500.0,0.00028767,2]
[327445463,1716077485898,-500.0,0.00028767,2]
[327445464,1716077485908,-500.0,0.00028767,2]
[327445465,1716077485917,-1409.03,0.00028767,2]
[327445466,1716077485926,-1542.92,0.00028767,2]
[327445467,1716077485936,-633.54,0.00028767,2]
[327445468,1716077485945,-151.0,0.00028767,7]
[327445469,1716077485954,-4096.02,0.00028767,2]
[327445470,1716077485963,-2212.12,0.00028767,2]
[327445471,1716077485973,-407.16744337,0.00028767,2]
[327445472,1716077485982,-500.0,0.00028767,2]
[327445473,1716077485991,-695.04,0.00028767,2]
[327445474,1716077486000,-1365.15,0.00028767,2]
[327445475,1716077486010,-500.0,0.00028767,2]
[327445476,1716077486019,-500.0,0.00028767,2]
[327445477,1716077486028,-500.0,0.00028767,2]
[327445478,1716077486037,-1557.76,0.00028767,2]
[327445479,1716077486046,-500.0,0.00028767,2]
[327445480,1716077486055,-500.0,0.00028767,2]
[327445481,1716077486063,-2000.0,0.00028786,2]
[327445482,1716077486073,-200.0,0.00028786,2]
[327445483,1716077486085,-169.18,0.00028829,2]
[327445484,1716077486093,-200.0,0.00028944,2]
[327445485,1716077486102,-1000.0,0.00028944,15]
[327445486,1716077486112,-500.0,0.00028944,2]
[327445487,1716077486121,-200.0,0.00028944,2]
[327445488,1716077486131,-500.0,0.0002904,2]
[327445489,1716077486140,-324.58,0.0002904,2]
[327445490,1716077486149,-150.0,0.0002904,2]
[327445491,1716077486158,-500.0,0.00029041,2]
[327445492,1716077486168,-500.0,0.00029041,2]
[327445493,1716077486177,-500.0,0.00029041,2]
[327445494,1716077486186,-500.0,0.00029041,2]
[327445495,1716077486195,-500.0,0.00029041,2]
[327445496,1716077486204,-500.0,0.00029041,2]
[327445497,1716077486213,-500.0,0.00029041,2]
[327445498,1716077486222,-500.0,0.00029041,2]
[327445499,1716077486232,-500.0,0.00029041,2]
[327445500,1716077486241,-561.71,0.00029041,2]
[327445501,1716077486250,-674.49,0.00029041,2]
[327445502,1716077486259,-702.65,0.00029041,2]
[327445503,1716077486268,-500.0,0.00029041,2]
[327445504,1716077486277,-689.69,0.00029041,2]
[327445505,1716077486286,-500.0,0.00029041,2]
[327445506,1716077486295,-580.84,0.00029041,2]
[327445507,1716077486304,-500.0,0.00029041,2]
[327445508,1716077486313,-500.0,0.00029041,2]
[327445509,1716077486322,-612.31,0.00029041,2]
[327445510,1716077486331,-961.14,0.00029041,2]
[327445511,1716077486340,-540.22,0.00029041,2]
[327445512,1716077486350,-1047.34,0.00029041,2]
[327445513,1716077486359,-500.0,0.00029041,2]
[327445514,1716077486370,-500.0,0.00029041,2]
[327445515,1716077486379,-867.44,0.00029041,2]
[327445516,1716077486388,-500.0,0.00029041,2]
[327445517,1716077486398,-500.0,0.00029041,2]
[327445518,1716077486407,-505.05,0.00029041,2]
[327445519,1716077486417,-500.0,0.00029041,2]
[327445520,1716077486426,-500.0,0.00029041,2]
[327445521,1716077486435,-500.0,0.00029041,2]
[327445522,1716077486445,-575.74,0.00029041,2]
[327445523,1716077486454,-500.0,0.00029041,2]
[327445524,1716077486463,-1013.47,0.00029041,2]
[327445525,1716077486473,-500.0,0.00029041,2]
[327445526,1716077486482,-500.0,0.00029041,2]
[327445527,1716077486491,-500.0,0.00029041,2]
[327445528,1716077486500,-500.0,0.00029041,2]
[327445529,1716077486510,-500.0,0.00029041,2]
[327445530,1716077486520,-501.04,0.00029041,2]
[327445531,1716077486529,-500.0,0.00029041,2]
[327445532,1716077486538,-570.91,0.00029041,2]
[327445533,1716077486548,-500.0,0.00029041,2]
[327445534,1716077486557,-500.0,0.00029041,2]
[327445535,1716077486567,-500.0,0.00029041,2]
[327445536,1716077486576,-781.67,0.00029041,2]
[327445537,1716077486585,-500.0,0.00029041,2]
[327445538,1716077486594,-500.0,0.00029041,2]
[327445539,1716077486604,-500.0,0.00029041,2]
[327445540,1716077486615,-500.0,0.00029041,2]
[327445541,1716077486624,-500.0,0.00029041,2]
[327445542,1716077486634,-859.88,0.00029041,2]
[327445543,1716077486643,-627.23,0.00029041,2]
[327445544,1716077486652,-644.06,0.00029041,2]
[327445545,1716077486662,-500.0,0.00029041,2]
[327445546,1716077486671,-500.0,0.00029041,2]
[327445547,1716077486685,-500.0,0.00029041,2]
[327445548,1716077486695,-500.0,0.00029041,2]
[327445549,1716077486705,-500.0,0.00029041,2]
[327445550,1716077486715,-151.0,0.00029041,7]
[327445551,1716077486724,-500.0,0.00029041,2]
[327445552,1716077486735,-840.81,0.00029041,2]
[327445553,1716077486744,-500.0,0.00029041,2]
[327445554,1716077486753,-500.0,0.00029041,2]
[327445555,1716077486765,-151.0,0.00029041,7]
[327445556,1716077486774,-670.91,0.00029041,2]
[327445557,1716077486784,-572.52,0.00029041,2]
[327445558,1716077486793,-500.0,0.00029041,2]
[327445559,1716077486802,-500.0,0.00029041,2]
[327445560,1716077486812,-500.0,0.00029041,2]
[327445561,1716077486821,-500.0,0.00029041,2]
[327445562,1716077486831,-1271.07,0.00029041,2]
[327445563,1716077486841,-598.75,0.00029041,2]
[327445564,1716077486850,-784.75,0.00029041,2]
[327445565,1716077486859,-524.04,0.00029041,2]
[327445566,1716077486870,-500.0,0.00029041,2]
[327445567,1716077486880,-975.28,0.00029041,2]
[327445568,1716077486889,-500.0,0.00029041,2]
[327445569,1716077486899,-555.23,0.00029041,2]
[327445570,1716077486909,-354.733553,0.00029041,7]
[327445571,1716077486918,-1270.09,0.00029041,2]
[327445572,1716077486927,-500.0,0.00029041,2]
[327445573,1716077486937,-500.0,0.00029041,2]
[327445574,1716077486947,-545.43,0.00029041,2]
[327445575,1716077486957,-567.78,0.00029041,2]
[327445576,1716077486966,-500.0,0.00029041,2]
[327445577,1716077486975,-354.733553,0.00029041,7]
[327445578,1716077486985,-1095.64,0.00029041,2]
[327445579,1716077486995,-500.0,0.00029041,2]
[327445580,1716077487004,-500.0,0.00029041,2]
[327445581,1716077487014,-585.96,0.00029041,2]
[327445582,1716077487023,-1080.36,0.00029041,2]
[327445583,1716077487032,-500.0,0.00029041,2]
[327445584,1716077487041,-878.43,0.00029041,2]
[327445585,1716077487051,-674.73,0.00029041,2]
[327445586,1716077487061,-524.41,0.00029041,2]
[327445587,1716077487070,-756.34,0.00029041,2]
[327445588,1716077487079,-830.44,0.00029041,2]
[327445589,1716077487089,-598.7,0.00029041,2]
[327445590,1716077487099,-500.0,0.00029041,2]
[327445591,1716077487108,-500.0,0.00029041,2]
[327445592,1716077487118,-769.97,0.00029041,2]
[327445593,1716077487128,-521.56,0.00029041,2]
[327445594,1716077487137,-654.52,0.00029041,2]
[327445595,1716077487147,-500.0,0.00029041,2]
[327445596,1716077487156,-718.86,0.00029041,2]
[327445597,1716077487165,-762.02,0.00029041,2]
[327445598,1716077487174,-773.69,0.00029041,2]
[327445599,1716077487184,-500.0,0.00029041,2]
[327445600,1716077487193,-500.0,0.00029041,2]
[327445601,1716077487203,-879.32,0.00029041,2]
[327445602,1716077487213,-807.43,0.00029041,2]
[327445603,1716077487222,-500.0,0.00029041,2]
[327445604,1716077487231,-500.0,0.00029041,2]
[327445605,1716077487242,-500.0,0.00029041,2]
[327445606,1716077487252,-960.42,0.00029041,2]
[327445607,1716077487262,-500.0,0.00029041,2]
[327445608,1716077487271,-799.74,0.00029041,2]
[327445609,1716077487281,-500.0,0.00029041,2]
[327445610,1716077487290,-1421.89,0.00029041,2]
[327445611,1716077487299,-694.7,0.00029041,2]
[327445612,1716077487309,-500.0,0.00029041,2]
[327445613,1716077487318,-574.3,0.00029041,2]
[327445614,1716077487329,-748.48,0.00029041,2]
[327445615,1716077487341,-500.0,0.00029041,2]
[327445616,1716077487350,-500.0,0.00029041,2]
[327445617,1716077487359,-500.0,0.00029041,2]
[327445618,1716077487369,-780.69,0.00029041,2]
[327445619,1716077487378,-960.46,0.00029041,2]
[327445620,1716077487388,-500.0,0.00029041,2]
[327445621,1716077487397,-500.0,0.00029041,2]
[327445622,1716077487406,-500.0,0.00029041,2]
[327445623,1716077487415,-564.47,0.00029041,2]
[327445624,1716077487425,-500.0,0.00029041,2]
[327445625,1716077487434,-500.0,0.00029041,2]
[327445626,1716077487443,-194.41045163,0.00029041,2]
[327445627,1716077487453,-500.0,0.00029041,2]
[327445628,1716077487462,-500.0,0.00029041,2]
[327445629,1716077487472,-1055.26,0.00029041,2]
[327445630,1716077487481,-1647.33,0.00029041,2]
[327445631,1716077487491,-500.0,0.00029041,2]
[327445632,1716077487501,-675.58,0.00029041,2]
[327445633,1716077487510,-500.0,0.00029041,2]
[327445634,1716077487519,-500.0,0.00029041,2]
[327445635,1716077487528,-500.0,0.00029041,2]
[327445636,1716077487537,-892.52,0.00029041,2]
[327445637,1716077487547,-500.0,0.00029041,2]
[327445638,1716077487557,-500.0,0.00029041,2]
[327445639,1716077487566,-696.4,0.00029041,2]
[327445640,1716077487575,-659.15,0.00029041,2]
[327445641,1716077487585,-975.45,0.00029041,2]
[327445642,1716077487594,-500.0,0.00029041,2]
[327445643,1716077487604,-500.0,0.00029041,2]
[327445644,1716077487614,-500.0,0.00029041,2]
[327445645,1716077487623,-500.0,0.00029041,2]
[327445646,1716077487634,-500.0,0.00029041,2]
[327445647,1716077487643,-500.0,0.00029041,2]
[327445648,1716077487652,-234.62909292,0.00029041,2]
[327445649,1716077487662,-500.0,0.00029041,2]
[327445650,1716077487672,-151.0,0.00029041,7]
[327445651,1716077487685,-500.0,0.00029041,2]
[327445652,1716077487696,-500.0,0.00029041,2]
[327445653,1716077487705,-199.154054,0.00029041,7]
[327445654,1716077487715,-500.0,0.00029041,2]
[327445655,1716077487726,-667.44,0.00029041,2]
[327445656,1716077487735,-500.0,0.00029041,2]
[327445657,1716077487745,-151.0,0.00029041,7]
[327445658,1716077487756,-500.0,0.00029041,2]
[327445659,1716077487766,-619.54,0.00029041,2]
[327445660,1716077487776,-500.0,0.00029041,2]
[327445661,1716077487786,-151.0,0.00029041,7]
[327445662,1716077487796,-849.47,0.00029041,2]
[327445663,1716077487805,-690.93,0.00029041,2]
[327445664,1716077487815,-500.0,0.00029041,2]
[327445665,1716077487825,-500.0,0.00029041,2]
[327445666,1716077487835,-902.26,0.00029041,2]
[327445667,1716077487846,-500.0,0.00029041,2]
[327445668,1716077487855,-500.0,0.00029041,2]
[327445669,1716077487866,-500.0,0.00029041,2]
[327445670,1716077487876,-500.0,0.00029041,2]
[327445671,1716077487886,-855.55,0.00029041,2]
[327445672,1716077487896,-165.962706,0.00029041,7]
[327445673,1716077487905,-500.0,0.00029041,2]
[327445674,1716077487915,-500.0,0.00029041,2]
[327445675,1716077487924,-500.0,0.00029041,2]
[327445676,1716077487935,-1577.42,0.00029041,2]
[327445677,1716077487945,-1068.89,0.00029041,2]
[327445678,1716077487958,-500.0,0.00029041,2]
[327445679,1716077487968,-820.23,0.00029041,2]
[327445680,1716077487977,-508.23,0.00029041,2]
[327445681,1716077487987,-609.88,0.00029041,2]
[327445682,1716077487996,-500.0,0.00029041,2]
[327445683,1716077488006,-500.0,0.00029041,2]
[327445684,1716077488018,-765.81,0.00029041,2]
[327445685,1716077488027,-500.0,0.00029041,2]
[327445686,1716077488036,-500.0,0.00029041,2]
[327445687,1716077488048,-500.0,0.00029041,2]
[327445688,1716077488058,-500.0,0.00029041,2]
[327445689,1716077488068,-500.0,0.00029041,2]
[327445690,1716077488077,-151.0,0.00029041,7]
[327445691,1716077488087,-500.0,0.00029041,2]
[327445692,1716077488097,-500.0,0.00029041,2]
[327445693,1716077488106,-500.0,0.00029041,2]
[327445694,1716077488117,-774.08,0.00029041,2]
[327445695,1716077488126,-750.89,0.00029041,2]
[327445696,1716077488135,-151.0,0.00029041,7]
[327445697,1716077488145,-500.0,0.00029041,2]
[327445698,1716077488155,-500.0,0.00029041,2]
[327445699,1716077488164,-500.0,0.00029041,2]
[327445700,1716077488174,-1264.74,0.00029041,2]
[327445701,1716077488183,-500.0,0.00029041,2]
[327445702,1716077488193,-500.0,0.00029041,2]
[327445703,1716077488202,-732.31,0.00029041,2]
[327445704,1716077488212,-500.0,0.00029041,2]
[327445705,1716077488221,-500.0,0.00029041,2]
[327445706,1716077488230,-151.0,0.00029041,7]
[327445707,1716077488240,-961.36,0.00029041,2]
[327445708,1716077488251,-531.22783046,0.00029041,2]
[327445709,1716077488260,-1397.82,0.00029041,2]
[327445710,1716077488270,-620.55,0.00029041,2]
[327445711,1716077488279,-500.0,0.00029041,2]
[327445712,1716077488289,-500.0,0.00029041,2]
[327445713,1716077488298,-500.0,0.00029041,2]
[327445714,1716077488308,-500.0,0.00029041,2]
[327445715,1716077488317,-788.47,0.00029041,2]
[327445716,1716077488327,-702.58,0.00029041,2]
[327445717,1716077488336,-406.69,0.00029041,2]
[327445718,1716077488347,-717.76,0.00029041,2]
[327445719,1716077488356,-1107.18,0.00029041,2]
[327445720,1716077488366,-500.0,0.00029041,2]
[327445721,1716077488375,-500.0,0.00029041,2]
[327445722,1716077488385,-1418.57,0.00029041,2]
[327445723,1716077488395,-500.0,0.00029041,2]
[327445724,1716077488405,-500.0,0.00029041,2]
[327445725,1716077488415,-548.41,0.00029041,2]
[327445726,1716077488427,-731.89,0.00029041,2]
[327445727,1716077488437,-654.67,0.00029041,2]
[327445728,1716077488447,-500.0,0.00029041,2]
[327445729,1716077488457,-500.0,0.00029041,2]
[327445730,1716077488466,-575.3,0.00029041,2]
[327445731,1716077488476,-500.0,0.00029041,2]
[327445732,1716077488486,-500.0,0.00029041,2]
[327445733,1716077488496,-753.87,0.00029041,2]
[327445734,1716077488506,-558.06,0.00029041,2]
[327445735,1716077488515,-500.0,0.00029041,2]
[327445736,1716077488526,-500.0,0.00029041,2]
[327445737,1716077488730,-592.45,0.00029041,2]
[327445738,1716077488748,-1470.72,0.00029041,2]
[327445739,1716077488760,-735.2,0.00029041,2]
[327445740,1716077488769,-897.8,0.00029041,2]
[327445741,1716077488779,-500.0,0.00029041,2]
[327445742,1716077488789,-500.0,0.00029041,2]
[327445743,1716077488799,-500.0,0.00029041,2]
[327445744,1716077488809,-1194.38,0.00029041,2]
[327445745,1716077488819,-894.37,0.00029041,2]
[327445746,1716077488828,-567.91,0.00029041,2]
[327445747,1716077488838,-1413.9,0.00029041,2]
[327445748,1716077488849,-838.92,0.00029041,2]
[327445749,1716077488858,-500.0,0.00029041,2]
[327445750,1716077488869,-579.0,0.00029041,2]
[327445751,1716077488878,-500.0,0.00029041,2]
[327445752,1716077488888,-151.0,0.00029041,7]
[327445753,1716077488897,-1047.05,0.00029041,2]
[327445754,1716077488907,-1288.52,0.00029041,2]
[327445755,1716077488916,-512.22,0.00029041,2]
[327445756,1716077488926,-737.25,0.00029041,2]
[327445757,1716077488935,-151.0,0.00029041,7]
[327445758,1716077488944,-973.22,0.00029041,2]
[327445759,1716077488954,-1081.43,0.00029041,2]
[327445760,1716077488963,-500.0,0.00029041,2]
[327445761,1716077488973,-539.38,0.00029041,2]
[327445762,1716077488983,-500.0,0.00029041,2]
[327445763,1716077488992,-500.0,0.00029041,2]
[327445764,1716077489002,-606.08520158,0.00029041,2]
[327445765,1716077489012,-771.25,0.00029041,2]
[327445766,1716077489021,-620.78,0.00029041,2]
[327445767,1716077489031,-500.0,0.00029041,2]
[327445768,1716077489041,-500.0,0.00029041,2]
[327445769,1716077489051,-500.0,0.00029041,2]
[327445770,1716077489060,-500.0,0.00029041,2]
[327445771,1716077489070,-500.0,0.00029041,2]
[327445772,1716077489080,-501.17,0.00029041,2]
[327445773,1716077489089,-500.0,0.00029041,2]
[327445774,1716077489099,-390.93,0.00029041,2]
[327445775,1716077489109,-500.0,0.00029041,2]
[327445776,1716077489121,-500.0,0.00029041,2]
[327445777,1716077489131,-500.0,0.00029041,2]
[327445778,1716077489141,-500.0,0.00029041,2]
[327445779,1716077489150,-500.0,0.00029041,2]
[327445780,1716077489160,-862.09,0.00029041,2]
[327445781,1716077489171,-500.0,0.00029041,2]
[327445782,1716077489180,-500.0,0.00029041,2]
[327445783,1716077489190,-500.0,0.00029041,2]
[327445784,1716077489200,-500.0,0.00029041,2]
[327445785,1716077489209,-596.95,0.00029041,2]
[327445786,1716077489219,-881.6,0.00029041,2]
[327445787,1716077489228,-500.0,0.00029041,2]
[327445788,1716077489238,-500.0,0.00029041,2]
[327445789,1716077489247,-500.0,0.00029041,2]
[327445790,1716077489257,-720.84,0.00029041,2]
[327445791,1716077489267,-2975.3,0.00029041,2]
[327445792,1716077489276,-324.2325388,0.00029041,2]
[327445793,1716077489285,-662.13,0.00029041,2]
[327445794,1716077489295,-151.0,0.00029041,7]
[327445795,1716077489304,-500.0,0.00029041,2]
[327445796,1716077489314,-500.0,0.00029041,2]
[327445797,1716077489323,-1121.07,0.00029041,2]
[327445798,1716077489332,-500.0,0.00029041,2]
[327445799,1716077489342,-500.0,0.00029041,2]
[327445800,1716077489352,-875.83,0.00029041,2]
[327445801,1716077489362,-500.0,0.00029041,2]
[327445802,1716077489372,-500.0,0.00029041,2]
[327445803,1716077489382,-500.0,0.00029041,2]
[327445804,1716077489391,-1130.37,0.00029041,2]
[327445805,1716077489402,-695.7,0.00029041,2]
[327445806,1716077489411,-1392.95,0.00029041,2]
[327445807,1716077489421,-500.0,0.00029041,2]
[327445808,1716077489430,-500.0,0.00029041,2]
[327445809,1716077489440,-698.81,0.00029041,2]
[327445810,1716077489449,-500.0,0.00029041,2]
[327445811,1716077489458,-791.91,0.00029041,2]
[327445812,1716077489467,-187.4750534,0.00029041,2]
[327445813,1716077489477,-1456.87,0.00029041,2]